bitfinex-derivatives/quotes_BTCF0:USTF0_20251025
["timestamp","ask_amount","ask_price","bid_price","bid_amount"]
[1761412525137,0.08893993,111480.0,111470.0,0.04878]
[1761412525328,0.08893993,111480.0,111470.0,0.18461519]
[1761412527538,0.08893993,111480.0,111470.0,0.04878]
[1761412530039,0.22477512,111480.0,111470.0,0.04878]
[1761412533438,0.20539207,111480.0,111470.0,0.16523214]
[1761412538339,0.22961909,111480.0,111470.0,0.16523214]
[1761412538528,0.20539207,111480.0,111470.0,0.16523214]
[1761412539239,0.22961909,111480.0,111470.0,0.16523214]
[1761412543644,0.11316695,111480.0,111470.0,0.16523214]
[1761412543937,0.22961909,111480.0,111470.0,0.16523214]
[1761412555351,0.22961909,111480.0,111470.0,0.04878]
[1761412555651,0.22961909,111480.0,111470.0,0.16523214]
[1761412563256,0.22961909,111480.0,111470.0,0.04878]
[1761412563455,0.23764652,111480.0,111470.0,0.02692]
[1761412563755,0.23764652,111480.0,111470.0,0.005]
[1761412564653,0.12119438,111480.0,111470.0,0.005]
[1761412564958,0.55200652,111480.0,111470.0,0.028]
[1761412565359,0.57622049,111480.0,111470.0,0.028]
[1761412566762,0.45976835,111480.0,111470.0,0.028]
[1761412571262,0.4275139,111480.0,111470.0,0.028]
[1761412573367,0.45976835,111480.0,111470.0,0.028]
[1761412576062,0.45976835,111480.0,111470.0,0.005]
[1761412576463,0.4275139,111480.0,111470.0,0.005]
[1761412576665,0.4275139,111480.0,111470.0,0.028]
[1761412578772,0.38226905,111480.0,111470.0,0.028]
[1761412578967,0.42738857,111480.0,111470.0,0.028]
[1761412579273,0.45964302,111480.0,111470.0,0.028]
[1761412588185,0.43544502,111480.0,111470.0,0.028]
[1761412605492,0.43544502,111480.0,111470.0,0.005]
[1761412605696,0.43544502,111480.0,111450.0,0.04365]
[1761412605697,0.05669,111460.0,111450.0,0.04365]
[1761412605995,0.41620455,111460.0,111450.0,0.04365]
[1761412606897,0.41620455,111460.0,111450.0,0.04465]
[1761412607394,0.41820455,111460.0,111450.0,0.04865]
[1761412608290,0.41820455,111460.0,111450.0,0.04765]
[1761412608596,0.42420455,111460.0,111450.0,0.04565]
[1761412623209,0.42420455,111460.0,111450.0,0.002]
[1761412623607,0.57518001,111460.0,111450.0,0.002]
[1761412624313,0.57522009,111460.0,111450.0,0.002]
[1761412624710,0.0129,111440.0,111430.0,0.09200401]
[1761412624918,0.0568,111440.0,111430.0,0.0438]
[1761412625214,0.0778052,111440.0,111430.0,0.0438]
[1761412626009,0.08696436,111440.0,111430.0,0.0438]
[1761412626209,0.09196436,111440.0,111430.0,0.0458]
[1761412626610,0.09196436,111440.0,111430.0,0.0468]
[1761412628809,0.09196436,111440.0,111430.0,0.18273038]
[1761412630018,0.09196436,111440.0,111430.0,0.78273038]
[1761412632320,0.09196029,111440.0,111430.0,0.78273038]
[1761412633018,0.09196029,111440.0,111430.0,0.18273038]
[1761412654435,0.09196029,111440.0,111430.0,0.23093439]
[1761412661137,0.09196029,111440.0,111430.0,0.09500401]
[1761412661336,0.09196029,111440.0,111430.0,0.23093439]
[1761412672947,0.09196029,111440.0,111430.0,0.09500401]
[1761412673145,0.09196029,111440.0,111430.0,0.0468]
[1761412673146,0.25207765,111440.0,111430.0,0.0468]
[1761412679859,0.25207765,111440.0,111430.0,0.18273038]
[1761412681256,0.25207765,111440.0,111430.0,0.0468]
[1761412688361,0.25207765,111440.0,111430.0,0.003]
[1761412690161,0.56651765,111440.0,111430.0,0.003]
[1761412690560,0.56651765,111440.0,111430.0,0.02519]
[1761412690862,0.43058727,111440.0,111430.0,0.02519]
[1761412691256,0.43058727,111440.0,111420.0,8.42e-05]
[1761412691563,0.05696,111430.0,111420.0,0.0453242]
[1761412691761,0.07796113,111430.0,111420.0,0.0453242]
[1761412693366,0.07796113,111430.0,111420.0,0.0463242]
[1761412693563,0.08296113,111430.0,111420.0,0.0493242]
[1761412700559,0.08305817,111430.0,111420.0,0.0493242]
[1761412701865,0.05696,111420.0,111410.0,0.09344401]
[1761412702055,0.07805817,111420.0,111410.0,0.04524]
[1761412702862,0.07805817,111420.0,111410.0,0.04824]
[1761412703369,0.08105817,111420.0,111410.0,0.06224]
[1761412729680,0.05996,111420.0,111410.0,0.06224]
[1761412730968,0.10538638,111420.0,111410.0,0.06224]
[1761412731681,0.08115771,111420.0,111410.0,0.06224]
[1761412731976,0.10540625,111420.0,111410.0,0.06224]
[1761412734888,0.10540625,111420.0,111410.0,0.03919]
[1761412736383,0.10540625,111420.0,111410.0,0.017]
[1761412737693,0.10540625,111420.0,111410.0,0.014]
[1761412737897,0.05766,111410.0,111400.0,0.09233443]
[1761412738200,0.07895297,111410.0,111400.0,0.09233443]
[1761412739194,0.07895297,111410.0,111400.0,0.09333443]
[1761412739895,0.08595297,111410.0,111400.0,0.09633443]
[1761412741905,0.08595297,111410.0,111400.0,0.07346443]
[1761412742102,0.08595297,111410.0,111400.0,0.0251]
[1761412742499,0.05726,111400.0,111390.0,0.04543]
[1761412742700,0.07846698,111400.0,111390.0,0.04543]
[1761412742898,0.05726,111390.0,111380.0,0.04543]
[1761412743101,0.07846698,111390.0,111380.0,0.04543]
[1761412743806,0.08756951,111390.0,111380.0,0.04543]
[1761412744104,0.09656951,111390.0,111380.0,0.04743]
[1761412745206,0.08746698,111390.0,111380.0,0.04743]
[1761412749110,0.009,111390.0,111380.0,0.20871776]
[1761412749299,0.03015005,111390.0,111380.0,0.20871776]
[1761412749496,0.07383005,111390.0,111380.0,0.20871776]
[1761412750308,0.05268,111390.0,111380.0,0.20871776]
[1761412751507,0.06626,111390.0,111380.0,0.20871776]
[1761412751713,0.06626,111390.0,111380.0,0.19850776]
[1761412752810,0.06626,111390.0,111380.0,0.18345607]
[1761412754117,0.06626,111390.0,111380.0,0.87322917]
[1761412756014,0.05268,111390.0,111380.0,0.87322917]
[1761412756816,0.05268,111390.0,111380.0,0.27322917]
[1761412758213,0.03114,111390.0,111380.0,0.27322917]
[1761412758415,0.009,111390.0,111380.0,0.40925524]
[1761412758910,0.03114,111390.0,111380.0,0.40925524]
[1761412759109,0.03114,111390.0,111380.0,1.00925524]
[1761412761119,0.009,111390.0,111380.0,0.40925524]
[1761412763817,0.06800526,111410.0,111400.0,0.1351868]
[1761412764015,0.04338226,111410.0,111400.0,0.59614287]
[1761412764417,0.06492226,111410.0,111400.0,0.59614287]
[1761412766218,0.07292226,111410.0,111400.0,0.59614287]
[1761412767924,0.05138226,111410.0,111400.0,0.59614287]
[1761412770922,0.07292226,111410.0,111400.0,0.59614287]
[1761412773127,0.05138226,111410.0,111400.0,0.59614287]
[1761412773828,0.07357226,111410.0,111400.0,0.59614287]
[1761412775927,0.11050153,111410.0,111400.0,0.49617607]
[1761412779627,0.11050153,111410.0,111400.0,0.58593287]
[1761412785934,0.08626226,111410.0,111400.0,0.58593287]
[1761412789638,0.08626226,111410.0,111400.0,0.49617607]
[1761412792733,0.07357226,111410.0,111400.0,0.49617607]
[1761412792938,0.02924226,111410.0,111400.0,0.77032337]
[1761412793141,0.00808599,111410.0,111400.0,1.38623096]
[1761412794338,0.00808599,111410.0,111400.0,1.32195894]
[1761412797343,0.00808599,111410.0,111400.0,1.33115046]
[1761412797539,0.11419416,111440.0,111430.0,0.04646]
[1761412797853,0.13543245,111440.0,111430.0,0.49716607]
[1761412798638,0.10312756,111440.0,111430.0,0.49716607]
[1761412798842,0.11512756,111440.0,111430.0,0.49916607]
[1761412799653,0.11612756,111440.0,111430.0,0.49916607]
[1761412800351,0.11612756,111440.0,111430.0,0.49716607]
[1761412800553,0.10712756,111440.0,111430.0,0.50016607]
[1761412803154,0.70712756,111440.0,111430.0,0.50016607]
[1761412803657,0.07135756,111440.0,111430.0,0.50016607]
[1761412803856,0.10769756,111440.0,111430.0,0.50016607]
[1761412804159,0.06222,111440.0,111430.0,0.50016607]
[1761412804356,0.10763056,111440.0,111430.0,0.50016607]
[1761412804561,0.24365663,111440.0,111430.0,0.50012607]
[1761412805063,0.10763056,111440.0,111430.0,0.50012607]
[1761412814768,0.10763056,111440.0,111430.0,0.3641]
[1761412821273,0.13993545,111440.0,111430.0,0.3641]
[1761412821493,0.13999039,111440.0,111430.0,0.3641]
[1761412822385,0.1157763,111440.0,111430.0,0.3641]
[1761412827881,0.16423364,111440.0,111430.0,0.3641]
[1761412834191,0.13192875,111440.0,111430.0,0.3641]
[1761412836087,0.11578958,111440.0,111430.0,0.3641]
[1761412842878,0.11583445,111440.0,111430.0,0.3641]
[1761412852808,0.09453817,111440.0,111430.0,0.3641]
[1761412852999,0.06222,111440.0,111430.0,0.3641]
[1761412856701,0.11583529,111440.0,111430.0,0.3641]
[1761412858001,0.11583529,111440.0,111430.0,0.51515255]
[1761412859299,0.11580267,111440.0,111430.0,0.51515255]
[1761412859901,0.10275267,111440.0,111430.0,0.52151255]
[1761412860403,0.12699174,111440.0,111430.0,0.52151255]
[1761412864298,0.08182174,111440.0,111430.0,0.52151255]
[1761412864494,0.04950298,111440.0,111430.0,0.52151255]
[1761412865901,0.04950298,111440.0,111430.0,0.61124525]
[1761412866691,0.05758267,111440.0,111430.0,0.61124525]
[1761412868202,0.05758267,111440.0,111430.0,0.52151255]
[1761412872896,0.10239267,111440.0,111430.0,0.52151255]
[1761412876803,0.09430162,111440.0,111430.0,0.50638052]
[1761412877607,0.09430162,111440.0,111430.0,0.37046]
[1761412877903,0.09430162,111440.0,111430.0,0.50638052]
[1761412885910,0.04881,111440.0,111430.0,0.50638052]
[1761412886109,0.09429373,111440.0,111430.0,0.50638052]
[1761412892013,0.12661249,111440.0,111430.0,0.50638052]
[1761412892723,0.09429373,111440.0,111430.0,0.50638052]
[1761412894416,0.12661249,111440.0,111430.0,0.50638052]
[1761412894619,0.09429373,111440.0,111430.0,0.50638052]
[1761412895721,0.10728373,111440.0,111430.0,0.50002052]
[1761412896015,0.13960249,111440.0,111430.0,0.50002052]
[1761412906620,0.16385183,111440.0,111430.0,0.50002052]
[1761412910636,0.11537368,111440.0,111430.0,0.50002052]
[1761412916743,0.10729184,111440.0,111430.0,0.50002052]
[1761412920543,0.1396106,111440.0,111430.0,0.50002052]
[1761412923950,0.1396106,111440.0,111430.0,0.3641]
[1761412924254,0.1396106,111440.0,111430.0,0.50002052]
[1761412930542,0.10729184,111440.0,111430.0,0.50002052]
[1761412930943,0.1396106,111440.0,111430.0,0.50002052]
[1761412932147,0.1266206,111440.0,111430.0,0.50638052]
[1761412938657,0.1266206,111440.0,111430.0,0.5214851]
[1761412946666,0.15086183,111440.0,111430.0,0.5214851]
[1761412956783,0.12662202,111440.0,111430.0,0.5214851]
[1761412956984,0.14002202,111440.0,111430.0,0.5151251]
[1761412961886,0.13999873,111440.0,111430.0,0.5151251]
[1761412964288,0.13999873,111440.0,111430.0,0.3641]
[1761412964588,0.13999873,111440.0,111430.0,0.5151251]
[1761412973599,0.10767997,111440.0,111430.0,0.5151251]
[1761412980003,0.13999873,111440.0,111430.0,0.5151251]
[1761412984001,0.04946997,111440.0,111430.0,0.5214851]
[1761412984502,0.04946997,111440.0,111430.0,0.53048965]
[1761412986604,0.0605571,111440.0,111430.0,0.53048965]
[1761412986803,0.08178873,111440.0,111430.0,0.53048965]
[1761412987305,0.04946997,111440.0,111430.0,0.53048965]
[1761412992512,0.09490997,111440.0,111430.0,0.5214851]
[1761412996215,0.04946997,111440.0,111430.0,0.5214851]
[1761412996808,0.03631876,111440.0,111430.0,0.5214851]
[1761412997115,0.05755039,111440.0,111430.0,0.5214851]
[1761412998213,0.05755039,111440.0,111430.0,0.6112178]
[1761412998423,0.03231876,111450.0,111440.0,0.05478]
[1761412998716,0.03231876,111450.0,111440.0,0.2058051]
[1761412999215,0.07775876,111460.0,111440.0,0.2955298]
[1761412999416,0.09136876,111460.0,111450.0,0.5134151]
[1761413000309,0.10053511,111460.0,111450.0,0.5134151]
[1761413000509,0.10553511,111460.0,111450.0,0.5134151]
[1761413000809,0.10553511,111460.0,111450.0,0.63411928]
[1761413002019,0.10453511,111460.0,111450.0,0.64511928]
[1761413002421,0.10353511,111460.0,111450.0,0.64511928]
[1761413004819,0.10353511,111460.0,111450.0,0.50587464]
[1761413006226,0.09436876,111460.0,111450.0,0.50587464]
[1761413007324,0.10327263,111460.0,111450.0,0.50587464]
[1761413008115,0.10327263,111460.0,111450.0,0.37001]
[1761413008317,0.23913727,111460.0,111450.0,0.19143464]
[1761413008516,0.23913727,111460.0,111450.0,0.50591464]
[1761413009122,0.10327263,111460.0,111450.0,0.50591464]
[1761413010426,0.1153016,111460.0,111450.0,0.50591464]
[1761413011019,0.12429536,111460.0,111450.0,0.50591464]
[1761413015114,0.10336252,111460.0,111450.0,0.50591464]
[1761413015321,0.12429528,111460.0,111450.0,0.50591464]
[1761413015521,0.12429574,111460.0,111450.0,0.50591464]
[1761413015722,0.09197698,111460.0,111450.0,0.50591464]
[1761413023334,0.22784162,111460.0,111450.0,0.50591464]
[1761413023527,0.22784162,111460.0,111450.0,0.05557]
[1761413023727,0.22784162,111460.0,111450.0,0.37001]
[1761413023936,0.22784162,111460.0,111450.0,0.50587464]
[1761413025342,0.26016038,111460.0,111450.0,0.50587464]
[1761413029844,0.26016038,111460.0,111450.0,0.37001]
[1761413030046,0.26016038,111460.0,111450.0,0.50587464]
[1761413031534,0.26016038,111460.0,111450.0,0.37001]
[1761413031734,0.26016038,111460.0,111450.0,0.50587464]
[1761413032141,0.12429574,111460.0,111450.0,0.50587464]
[1761413032440,0.26016038,111460.0,111450.0,0.50587464]
[1761413036744,0.30863853,111460.0,111450.0,0.50587464]
[1761413037149,0.26016038,111460.0,111450.0,0.50587464]
[1761413044249,0.26016038,111460.0,111450.0,0.37001]
[1761413044452,0.26016038,111460.0,111450.0,0.50587464]
[1761413048259,0.26016038,111460.0,111450.0,0.37001]
[1761413048456,0.26016038,111460.0,111450.0,0.50587464]
[1761413052661,0.26016038,111460.0,111450.0,0.37001]
[1761413062675,0.12429574,111460.0,111450.0,0.37001]
[1761413064072,0.32379486,111460.0,111450.0,0.03293]
[1761413064378,0.2914761,111460.0,111450.0,0.03293]
[1761413065866,0.14045513,111460.0,111450.0,0.03293]
[1761413066065,0.2914761,111460.0,111450.0,0.05532]
[1761413068271,0.32376248,111460.0,111450.0,0.05532]
[1761413068867,0.2914761,111460.0,111450.0,0.05532]
[1761413069365,0.32375985,111460.0,111450.0,0.05532]
[1761413073873,0.2914761,111460.0,111450.0,0.05532]
[1761413086885,0.24299795,111460.0,111450.0,0.05532]
[1761413087382,0.24299795,111460.0,111450.0,0.03293]
[1761413087883,0.2914278,111460.0,111450.0,0.03293]
[1761413096890,0.27531474,111460.0,111450.0,0.03293]
[1761413097793,0.25438152,111460.0,111450.0,0.03293]
[1761413098595,0.22206473,111460.0,111450.0,0.03293]
[1761413098797,0.29142755,111460.0,111450.0,0.03293]
[1761413099297,0.29142755,111460.0,111450.0,0.011]
[1761413099596,0.27049458,111460.0,111450.0,0.011]
[1761413101199,0.22206473,111460.0,111450.0,0.011]
[1761413103698,0.29147289,111460.0,111450.0,0.011]
[1761413124909,0.27638789,111460.0,111450.0,0.011]
[1761413146637,0.2279127,111460.0,111450.0,0.011]
[1761413146837,0.27638352,111460.0,111450.0,0.011]
[1761413159640,0.27638352,111460.0,111450.0,0.03224]
[1761413166456,0.27638352,111460.0,111450.0,0.011]
[1761413184961,0.2279127,111460.0,111450.0,0.011]
[1761413185563,0.5423127,111460.0,111450.0,0.011]
[1761413186671,0.55741374,111460.0,111450.0,0.011]
[1761413186862,0.60588925,111460.0,111450.0,0.011]
[1761413188564,0.45485224,111460.0,111450.0,0.011]
[1761413188753,0.60588925,111460.0,111450.0,0.011]
[1761413190563,0.60588925,111460.0,111450.0,0.03279]
[1761413194470,0.60588925,111460.0,111450.0,0.05382]
[1761413194966,0.60588925,111460.0,111450.0,0.03279]
[1761413195357,0.60588925,111460.0,111450.0,0.011]
[1761413208374,0.45485224,111460.0,111450.0,0.011]
[1761413208575,0.60588925,111460.0,111450.0,0.011]
[1761413210071,0.55741374,111460.0,111450.0,0.011]
[1761413214274,0.55756036,111460.0,111450.0,0.011]
[1761413219977,0.60603587,111460.0,111450.0,0.011]
[1761413223979,0.62603587,111460.0,111450.0,0.011]
[1761413231285,0.57756036,111460.0,111450.0,0.011]
[1761413234575,0.57756036,111460.0,111420.0,0.06992661]
[1761413234781,0.05799,111420.0,111410.0,0.0438]
[1761413234984,0.10330498,111420.0,111410.0,0.19483701]
[1761413235581,0.11210008,111420.0,111410.0,0.19483701]
[1761413236792,0.08786469,111420.0,111410.0,0.19483701]
[1761413237388,0.09286469,111420.0,111410.0,0.20983701]
[1761413237591,0.09286469,111420.0,111410.0,0.21283701]
[1761413237781,0.09186469,111420.0,111410.0,0.21083701]
[1761413238390,0.09186469,111420.0,111410.0,0.20783701]
[1761413240191,0.08306959,111420.0,111410.0,0.80783701]
[1761413241691,0.08306959,111420.0,111410.0,0.6568]
[1761413241989,0.08306959,111420.0,111410.0,0.80783701]
[1761413246703,0.08306959,111420.0,111410.0,0.79277992]
[1761413248396,0.17281029,111420.0,111410.0,0.79277992]
[1761413249102,0.17281029,111420.0,111410.0,0.6568]
[1761413249400,0.17281029,111420.0,111410.0,0.79277992]
[1761413262712,0.19704568,111420.0,111410.0,0.79277992]
[1761413269613,0.19704568,111420.0,111410.0,0.6568]
[1761413269818,0.19704568,111420.0,111410.0,0.79277992]
[1761413285230,0.19704568,111420.0,111410.0,0.19277992]
[1761413290330,0.19704568,111420.0,111410.0,0.79277992]
[1761413293632,0.19704568,111420.0,111410.0,0.6568]
[1761413293826,0.19704568,111420.0,111410.0,0.79277992]
[1761413297034,0.19704568,111420.0,111410.0,0.19277992]
[1761413300638,0.19704568,111420.0,111410.0,0.79277992]
[1761413306748,0.19704568,111420.0,111410.0,0.80789174]
[1761413316853,0.22935554,111420.0,111410.0,0.80789174]
[1761413325071,0.22937793,111420.0,111410.0,0.80789174]
[1761413326868,0.19706807,111420.0,111410.0,0.80789174]
[1761413331382,0.19706807,111420.0,111410.0,0.6568]
[1761413331675,0.19706807,111420.0,111410.0,0.80789174]
[1761413337875,0.19706803,111420.0,111410.0,0.80789174]
[1761413341876,0.19706803,111420.0,111410.0,1.12233174]
[1761413342381,0.19706803,111420.0,111410.0,0.97124]
[1761413348384,0.19706803,111420.0,111410.0,1.12233174]
[1761413348582,0.19706803,111420.0,111410.0,0.80789174]
[1761413353093,0.19706803,111420.0,111410.0,0.6568]
[1761413353280,0.19706803,111420.0,111410.0,0.80789174]
[1761413356882,0.19706803,111420.0,111410.0,0.20789174]
[1761413360594,0.19706803,111420.0,111410.0,0.80789174]
[1761413368796,0.19706803,111420.0,111410.0,0.79277941]
[1761413390728,0.19706803,111420.0,111410.0,0.19277941]
[1761413391531,0.19706803,111420.0,111410.0,0.0568]
[1761413391729,0.19706803,111420.0,111410.0,0.19277941]
[1761413395731,0.19706803,111420.0,111410.0,0.79277941]
[1761413399340,0.19703446,111420.0,111410.0,0.79277941]
[1761413402840,0.19703446,111420.0,111410.0,0.6568]
[1761413403038,0.19703446,111420.0,111410.0,0.79277941]
[1761413416956,0.19703446,111420.0,111410.0,0.19277941]
[1761413420659,0.19703446,111420.0,111410.0,0.79277941]
[1761413428666,0.19703446,111420.0,111410.0,0.80789382]
[1761413447288,0.19703446,111420.0,111410.0,0.6568]
[1761413452693,0.19703446,111420.0,111410.0,0.80789382]
[1761413456902,0.22934432,111420.0,111410.0,0.80789382]
[1761413467009,0.19703446,111420.0,111410.0,0.80789382]
[1761413476821,0.19703446,111420.0,111410.0,0.20789382]
[1761413481020,0.19703446,111420.0,111410.0,0.80789382]
[1761413490731,0.19703446,111420.0,111410.0,0.79277552]
[1761413505749,0.16164446,111420.0,111410.0,0.33511104]
[1761413505935,0.13904446,111420.0,111410.0,0.33511104]
[1761413516349,0.16045446,111420.0,111410.0,0.33511104]
[1761413520153,0.18254446,111420.0,111410.0,0.33511104]
[1761413520854,0.18244032,111420.0,111410.0,0.33511104]
[1761413524050,0.18244032,111420.0,111410.0,0.0568]
[1761413524252,0.18244032,111420.0,111410.0,0.19277552]
[1761413524253,0.19573032,111420.0,111410.0,0.19277552]
[1761413524458,0.19573032,111420.0,111410.0,0.3712]
[1761413524654,0.19573032,111420.0,111410.0,0.50717552]
[1761413552677,0.19573032,111420.0,111410.0,0.3712]
[1761413564587,0.19573032,111420.0,111410.0,0.52229927]
[1761413569592,0.19573032,111420.0,111410.0,0.3712]
[1761413578107,0.19575291,111420.0,111410.0,0.3712]
[1761413581301,0.19575786,111420.0,111410.0,0.3712]
[1761413582106,0.19575786,111420.0,111410.0,0.52229927]
[1761413593311,0.19575786,111420.0,111410.0,0.3712]
[1761413593513,0.19575786,111420.0,111410.0,0.52229927]
[1761413602125,0.19575786,111420.0,111410.0,0.3712]
[1761413602318,0.19575786,111420.0,111410.0,0.52229927]
[1761413607128,0.19575786,111420.0,111410.0,0.3712]
[1761413607327,0.19575786,111420.0,111410.0,0.52229927]
[1761413614837,0.19575786,111420.0,111410.0,0.507181]
[1761413615330,0.80207986,111420.0,111410.0,0.01160465]
[1761413615531,0.01304,111380.0,111370.0,0.04458]
[1761413615738,0.21649011,111380.0,111370.0,0.04458]
[1761413615934,0.1014941,111380.0,111370.0,0.180561]
[1761413616334,0.07724499,111380.0,111370.0,0.180561]
[1761413617035,0.08124499,111380.0,111370.0,0.185561]
[1761413617529,0.08124499,111380.0,111370.0,0.186561]
[1761413620945,0.08124499,111380.0,111370.0,0.786561]
[1761413621541,0.08124499,111380.0,111370.0,0.65058]
[1761413621745,0.08124499,111380.0,111370.0,0.786561]
[1761413623045,0.08124499,111380.0,111370.0,0.65058]
[1761413623242,0.08124499,111380.0,111370.0,0.786561]
[1761413624350,0.08124499,111380.0,111370.0,0.65058]
[1761413624648,0.08124499,111380.0,111370.0,0.786561]
[1761413625438,0.06026,111380.0,111370.0,0.786561]
[1761413625643,0.06026,111380.0,111370.0,0.65058]
[1761413625842,0.06026,111380.0,111370.0,0.786561]
[1761413627052,0.06026,111380.0,111370.0,0.65058]
[1761413627253,0.06026,111380.0,111370.0,0.786561]
[1761413632857,0.06026,111380.0,111370.0,0.65058]
[1761413633072,0.06026,111380.0,111370.0,0.786561]
[1761413633367,0.08177572,111380.0,111370.0,0.786561]
[1761413634070,0.21775672,111380.0,111370.0,0.786561]
[1761413634261,0.196241,111380.0,111370.0,0.786561]
[1761413634467,0.21775856,111380.0,111370.0,0.786561]
[1761413637173,0.08177756,111380.0,111370.0,0.786561]
[1761413640072,0.08199983,111380.0,111370.0,0.786561]
[1761413643380,0.24212873,111380.0,111370.0,0.65058]
[1761413643679,0.24212873,111380.0,111370.0,0.786561]
[1761413644273,0.10614773,111380.0,111370.0,0.786561]
[1761413644473,0.24212873,111380.0,111370.0,0.786561]
[1761413645381,0.25031298,111380.0,111370.0,0.786561]
[1761413646582,0.11433198,111380.0,111370.0,0.786561]
[1761413646982,0.13858289,111380.0,111370.0,0.786561]
[1761413651480,0.13858289,111380.0,111370.0,0.65058]
[1761413651685,0.13858289,111380.0,111370.0,0.786561]
[1761413656990,0.13858289,111380.0,111370.0,0.186561]
[1761413657585,0.13858289,111380.0,111370.0,0.05058]
[1761413657786,0.13858289,111380.0,111370.0,0.186561]
[1761413658292,0.13858289,111380.0,111370.0,0.05058]
[1761413658592,0.13858289,111380.0,111370.0,0.186561]
[1761413658792,0.10625074,111380.0,111370.0,0.186561]
[1761413660198,0.10625074,111380.0,111370.0,0.05058]
[1761413660896,0.10625074,111380.0,111370.0,0.65058]
[1761413665300,0.10625074,111380.0,111370.0,0.786561]
[1761413672603,0.10625074,111380.0,111370.0,0.65058]
[1761413672804,0.10625074,111380.0,111370.0,0.786561]
[1761413673805,0.24223174,111380.0,111370.0,0.786561]
[1761413676709,0.10625074,111380.0,111370.0,0.65058]
[1761413678910,0.25746471,111380.0,111370.0,0.05058]
[1761413679109,0.13858289,111380.0,111370.0,0.05058]
[1761413679412,0.10625074,111380.0,111370.0,0.05058]
[1761413681309,0.10627294,111380.0,111370.0,0.05058]
[1761413683014,0.11438618,111380.0,111370.0,0.05058]
[1761413683414,0.13859808,111380.0,111370.0,0.05058]
[1761413684317,0.10626593,111380.0,111370.0,0.05058]
[1761413688616,0.13859808,111380.0,111370.0,0.05058]
[1761413693315,0.10626593,111380.0,111370.0,0.05058]
[1761413693623,0.13859808,111380.0,111370.0,0.05058]
[1761413694316,0.10626593,111380.0,111370.0,0.05058]
[1761413694631,0.13859808,111380.0,111370.0,0.05058]
[1761413696117,0.10626593,111380.0,111370.0,0.05058]
[1761413703421,0.13859808,111380.0,111370.0,0.05058]
[1761413703934,0.10626593,111380.0,111370.0,0.05058]
[1761413704232,0.10626593,111380.0,111370.0,0.20179397]
[1761413704927,0.08205403,111380.0,111370.0,0.05058]
[1761413705232,0.06026,111380.0,111370.0,0.05058]
[1761413706125,0.08444551,111380.0,111370.0,0.05058]
[1761413706424,0.10619056,111380.0,111370.0,0.05058]
[1761413706625,0.08200505,111380.0,111370.0,0.05058]
[1761413706930,0.06026,111380.0,111370.0,0.05058]
[1761413707925,0.06026,111380.0,111370.0,0.20179397]
[1761413708932,0.06026,111380.0,111370.0,0.80179397]
[1761413710831,0.10617343,111380.0,111370.0,0.20179397]
[1761413714635,0.13840875,111380.0,111370.0,0.20179397]
[1761413714933,0.13840875,111380.0,111370.0,0.05058]
[1761413715135,0.13840875,111380.0,111370.0,0.20179397]
[1761413715836,0.13840875,111380.0,111370.0,0.80179397]
[1761413716835,0.13840875,111380.0,111370.0,0.20179397]
[1761413717737,0.11423226,111380.0,111370.0,0.20179397]
[1761413720736,0.11423226,111380.0,111370.0,0.80179397]
[1761413724040,0.11423226,111380.0,111370.0,0.65058]
[1761413724240,0.11423226,111380.0,111370.0,0.80179397]
[1761413725144,0.11423226,111380.0,111370.0,0.65058]
[1761413725344,0.11423226,111380.0,111370.0,0.80179397]
[1761413727847,0.13841422,111380.0,111370.0,0.80179397]
[1761413729145,0.13841422,111380.0,111370.0,0.65058]
[1761413738667,0.27450531,111380.0,111370.0,0.78667109]
[1761413739966,0.27450531,111380.0,111370.0,0.65058]
[1761413740166,0.27450531,111380.0,111370.0,0.78667109]
[1761413740564,0.27450531,111380.0,111370.0,0.05058]
[1761413740763,0.25032335,111380.0,111370.0,0.05058]
[1761413760276,0.25032335,111380.0,111370.0,0.18667109]
[1761413760686,0.11423226,111380.0,111370.0,0.18667109]
[1761413765595,0.11423226,111380.0,111370.0,0.05058]
[1761413765781,0.11423226,111380.0,111370.0,0.18667109]
[1761413771091,0.11416812,111380.0,111370.0,0.18667109]
[1761413771594,0.09249532,111380.0,111370.0,0.05058]
[1761413771792,0.09249532,111380.0,111370.0,0.18667109]
[1761413771993,0.06026,111380.0,111370.0,0.18667109]
[1761413772192,0.11418851,111380.0,111370.0,0.18667109]
[1761413775297,0.2502796,111380.0,111370.0,0.18667109]
[1761413775496,0.11418851,111380.0,111370.0,0.18667109]
[1761413775796,0.2502796,111380.0,111370.0,0.18667109]
[1761413782101,0.11418851,111380.0,111370.0,0.18667109]
[1761413782400,0.2502796,111380.0,111370.0,0.18667109]
[1761413785795,0.11418851,111380.0,111370.0,0.18667109]
[1761413793709,0.11418851,111380.0,111370.0,0.05058]
[1761413793911,0.11418851,111380.0,111370.0,0.18667109]
[1761413800718,0.11418851,111380.0,111370.0,0.05058]
[1761413815629,0.16257211,111380.0,111370.0,0.05058]
[1761413815833,0.11418851,111380.0,111370.0,0.05058]
[1761413816424,0.10613464,111380.0,111370.0,0.20178199]
[1761413823229,0.10613464,111380.0,111370.0,0.05058]
[1761413823632,0.10613464,111380.0,111370.0,0.20178199]
[1761413846340,0.10613464,111380.0,111370.0,0.05058]
[1761413846547,0.10613464,111380.0,111370.0,0.20178199]
[1761413848044,0.10613597,111380.0,111370.0,0.20178199]
[1761413857950,0.1383917,111380.0,111370.0,0.20178199]
[1761413860563,0.1383917,111380.0,111370.0,0.05058]
[1761413860764,0.1383917,111380.0,111370.0,0.20178199]
[1761413862665,0.1383917,111380.0,111370.0,0.1866526]
[1761413867967,0.10613597,111380.0,111370.0,0.1866526]
[1761413870469,0.10613597,111380.0,111370.0,0.05058]
[1761413870671,0.10613597,111380.0,111370.0,0.1866526]
[1761413875969,0.1383917,111380.0,111370.0,0.1866526]
[1761413878870,0.10613597,111380.0,111370.0,0.1866526]
[1761413879071,0.1383917,111380.0,111370.0,0.1866526]
[1761413879975,0.1383917,111380.0,111370.0,0.05058]
[1761413880172,0.1383917,111380.0,111370.0,0.1866526]
[1761413882470,0.10613597,111380.0,111370.0,0.1866526]
[1761413884676,0.1383917,111380.0,111370.0,0.1866526]
[1761413885269,0.10613597,111380.0,111370.0,0.1866526]
[1761413890084,0.10613597,111380.0,111370.0,0.05058]
[1761413890285,0.10613597,111380.0,111370.0,0.1866526]
[1761413891982,0.1383917,111380.0,111370.0,0.1866526]
[1761413897898,0.13840421,111380.0,111370.0,0.1866526]
[1761413901898,0.11419019,111380.0,111370.0,0.1866526]
[1761413904196,0.13840408,111380.0,111370.0,0.1866526]
[1761413907899,0.10614835,111380.0,111370.0,0.1866526]